[Event "45th FIDE Olympiad 2024"]
[Site "Budapest"]
[Date "2024.09.16"]
[Round "6.44"]
[White "Lagarde, Maxime"]
[Black "Gretarsson, Helgi Ass"]
[Result "1-0"]
[ECO "C84"]
[WhiteElo "2598"]
[BlackElo "2450"]
[Annotator "TA"]
[PlyCount "75"]
[EventDate "2024.09.05"]
[EventType "team-tourn"]
[EventCountry "HUN"]
[SourceTitle "playchess.com"]
[Source "ChessBase"]
[SourceQuality "1"]
[WhiteTeam "France"]
[BlackTeam "Iceland"]
[WhiteTeamCountry "FRA"]
[BlackTeamCountry "ISL"]
[TimeControl "40/5400+30:1800+30"]

{[%evp 13,75,19,20,0,16,0,18,8,21,27,23,26,18,31,36,18,28,30,21,23,37,42,71,73,75,53,138,14,27,7,31,0,41,10,94,45,55,30,49,41,61,52,50,57,108,112,102,103,108,104,97,96,168,152,157,148,179,181,501,502,510,493,513,505]} 1. e4 {[%emt 0:00:02]} e5 {[%emt 0:00:08]} 2. Nf3 {[%emt 0:00:03]} Nc6 {[%emt 0:00:09]} 3. Bb5 {[%emt 0:00:03]} a6 {[%emt 0:00:11]} 4. Ba4 {[%emt 0:00:04]} Nf6 {[%emt 0:00:10]} 5. O-O {[%emt 0:00:12]} Be7 {[%emt 0:00:13]} 6. d3 {[%emt 0:00:45]} b5 {[%emt 0:01:18]} 7. Bb3 {[%emt 0:00:04]} d6 {[%emt 0:00:31]} 8. Bd2 {[%emt 0:00:51]} O-O {[%emt 0:06:40]} 9. Re1 {[%emt 0:02:02]} h6 {[%emt 0:16:53]} 10. h3 {[%emt 0:03:23] The position is equal.} Re8 {[%emt 0:01:00]} 11. a4 {[%emt 0:12:45]} Rb8 {[%emt 0:02:04]} 12. axb5 {[%emt 0:00:27]} axb5 {[%emt 0:00:02]} 13. Nc3 {[%emt 0:01:55]} Bf8 {[%emt 0:21:44]} 14. Qb1 {[%emt 0:11:52]} Be6 {[%emt 0:01:57]} 15. Bxe6 {[%emt 0:05:18]} Rxe6 {[%emt 0:00:15]} 16. Nd5 {[%emt 0:01:36]} Re8 {[%emt 0:28:53]} 17. c4 {[%emt 0:05:06]} Be7 {[%emt 0:03:26]} 18. Ra6 {[%emt 0:04:05]} Qd7 {[%emt 0:01:06]} 19. Rc1 {[%emt 0:01:24]} Rb7 {[%emt 0:02:23] [#]} (19... Nd8 $14) 20. Qa2 {[%emt 0:17:55]} ({White should try} 20. c5 $1 $16 {[%cal Rc5d6] Black must now prevent cxd6.} dxc5 21. Nxe7+ Rxe7 22. Rxc5) 20... bxc4 $11 {[%emt 0:00:44]} 21. Rxc4 {[%emt 0:08:07]} Nb8 {[%emt 0:02:10]} 22. Ra8 {[%emt 0:01:49]} c6 {[%emt 0:02:02]} 23. Ne3 {[%emt 0:05:49]} Bd8 {[%emt 0:02:34]} (23... c5 $11 {keeps the balance.}) 24. Rca4 {[%emt 0:06:14]} (24. Rb4 $16 Rxb4 25. Bxb4) 24... d5 {[%emt 0:02:46][%cal Bd6d5,Bd5d4][%mdl 32]} 25. Nf5 {[%emt 0:02:07]} Bb6 {[%emt 0:00:31] Prevents R4a7} 26. Qa3 {[%emt 0:02:12] Strongly threatening Nd6.} c5 {[%emt 0:00:43]} 27. Bc3 {[%emt 0:02:23]} d4 {[%emt 0:02:50]} 28. Ba5 {[%emt 0:00:33] aiming for Bxb6.} Ba7 {[%emt 0:00:14] [#]} (28... Qe6 $14) 29. Bd8 $1 {[%emt 0:03:32][%mdl 512]} Qxd8 {[%emt 0:00:02]} 30. R4xa7 {[%emt 0:00:15]} Rxa7 {[%emt 0:00:18]} 31. Qxa7 {[%emt 0:00:39][%cal Of3e5] Nxe5! would now be deadly.} Nfd7 {[%emt 0:01:02]} 32. Nd6 $36 {[%emt 0:00:31][%mdl 2048] White is on the roll. White is much more active.} Re6 {[%emt 0:00:23] [#]} (32... Rf8 $16) 33. Nc4 $1 $18 {[%emt 0:00:58]} Kh7 {[%emt 0:01:04]} 34. Qb7 {[%emt 0:01:16]} f6 {[%emt 0:00:22]} 35. Nh4 {[%emt 0:00:18] Black is weak on the light squares} Re8 $2 {[%emt 0:00:21]} (35... Rc6 {is more resistant.} 36. Nf5 Qc7 37. Qxc7 Rxc7) 36. Nf5 {[%emt 0:00:20] White is clearly winning.} Rg8 {[%emt 0:00:29]} 37. Ncd6 {[%emt 0:01:00] Inhibits Qe8.} Nb6 {[%emt 0:00:40]} 38. Nf7 {[%emt 0:00:34] Against Nxa8.   Weighted Error Value: White=0.11 (very precise) /Black=0.33.  Mistake:       	White=2     	Black=5      Inaccurate:     	White=2     	Black=2      OK:         	White=14    	Black=8      Best:        	White=1     	---        Strong:       	White=1     	---} 1-0

[Event "45th FIDE Olympiad 2024"]
[Site "Budapest"]
[Date "2024.09.16"]
[Round "6.44"]
[White "Pillay, Harish"]
[Black "Makem, Pierre"]
[Result "0-1"]
[WhiteElo "1561"]
[BlackElo "1860"]
[PlyCount "46"]
[EventDate "2024.09.05"]
[EventType "team-tourn"]
[EventCountry "HUN"]
[WhiteTeam "Seychelles"]
[BlackTeam "Cameroon"]
[WhiteTeamCountry "SEY"]
[BlackTeamCountry "CAM"]
[TimeControl "40/5400+30:1800+30"]

1. e4 e6 2. Nf3 b6 3. d4 Bb7 4. Bd3 c5 5. c3 Nf6 6. Bg5 Be7 7. e5 Nd5 8. Bxe7 Qxe7 9. O-O Nf4 10. Bc2 g5 11. h3 h5 12. Nh2 Bxg2 13. Re1 Nc6 14. Be4 Bxe4 15. Rxe4 Nxh3+ 16. Kg2 g4 17. d5 exd5 18. Qxd5 Qh4 19. Qd2 Ng5 20. Re3 O-O-O 21. Na3 Nxe5 22. Qd6 Ngf3 23. Nb5 Qh3+ {0-} 0-1

[Event "45th FIDE Olympiad 2024"]
[Site "Budapest"]
[Date "2024.09.16"]
[Round "6.45"]
[White "Volokitin, Andrei"]
[Black "Kadric, Denis"]
[Result "1/2-1/2"]
[ECO "C42"]
[WhiteElo "2660"]
[BlackElo "2553"]
[Annotator "TA"]
[PlyCount "121"]
[EventDate "2024.09.05"]
[EventType "team-tourn"]
[EventCountry "HUN"]
[SourceTitle "playchess.com"]
[Source "ChessBase"]
[SourceQuality "1"]
[WhiteTeam "Ukraine"]
[BlackTeam "Montenegro"]
[WhiteTeamCountry "UKR"]
[BlackTeamCountry "MNE"]
[TimeControl "40/5400+30:1800+30"]

{[%evp 54,121,64,50,63,55,67,50,88,84,113,50,58,0,105,104,122,38,124,120,108,112,207,81,91,16,90,47,41,35,45,0,0,0,33,21,23,21,25,0,12,0,40,0,0,0,0,0,85,36,93,102,195,178,168,193,197,197,183,174,159,0,23,32,19,0,0,0,159,0]} 1. e4 {[%emt 0:00:03]} e5 {[%emt 0:00:05]} 2. Nf3 {[%emt 0:00:05]} Nf6 {[%emt 0:00:02]} 3. Nxe5 {[%emt 0:00:09]} d6 {[%emt 0:00:04]} 4. Nf3 {[%emt 0:00:04]} Nxe4 {[%emt 0:00:03]} 5. d4 {[%emt 0:00:13]} d5 {[%emt 0:00:05]} 6. Bd3 {[%emt 0:00:04]} Nc6 {[%emt 0:00:01]} 7. O-O {[%emt 0:00:13]} Be7 {[%emt 0:00:02]} 8. Nbd2 {[%emt 0:00:30]} Bf5 {[%emt 0:00:06]} 9. Re1 {[%emt 0:00:14]} Nxd2 {[%emt 0:00:03]} 10. Qxd2 {[%emt 0:00:06]} Bxd3 {[%emt 0:00:03]} 11. Qxd3 {[%emt 0:00:06]} O-O {[%emt 0:00:03]} 12. c3 {[%emt 0:00:50]} Qd7 {[%emt 0:00:12]} 13. Bf4 {[%emt 0:00:10]} a6 {[%emt 0:00:04]} 14. Re2 {[%emt 0:00:26] C42: Petroff Defence: 3 Nxe5 and unusual White 3rd moves.} Rae8 {[%emt 0:00:04]} 15. Rae1 {[%emt 0:00:09]} Bd8 {[%emt 0:00:05]} 16. h4 {[%emt 0:00:14]} f6 {[%emt 0:00:10]} 17. Nd2 {[%emt 0:00:46]} Rxe2 {[%emt 0:00:06]} 18. Qxe2 {[%emt 0:08:21]} a5 {[%emt 0:00:07]} 19. Nb3 {[%emt 0:02:02]} b6 {[%emt 0:01:20]} 20. Na1 $146 {[%emt 0:00:51]} ({Predecessor:} 20. Nc1 Rf7 21. Qb5 Re7 22. Rxe7 Bxe7 23. Ne2 Bd8 24. c4 dxc4 25. Qxc4+ Kf8 26. Bg3 {½-½ Gueci,A (2474)-Ntirlis,N (2389) EU-ch75 email 2022}) 20... Ne7 {[%emt 0:04:51]} 21. Nc2 {[%emt 0:01:32]} Re8 {[%emt 0:02:56]} 22. h5 {[%emt 0:23:09]} Kf7 {[%emt 0:06:03]} 23. g4 {[%emt 0:03:08]} g5 {[%emt 0:22:49]} 24. Bg3 {[%emt 0:16:03]} f5 {[%emt 0:06:59]} 25. Qd3 {[%emt 0:10:05]} Kg8 {[%emt 0:04:56]} 26. gxf5 {[%emt 0:13:28]} Rf8 {[%emt 0:00:08]} 27. Ne3 {[%emt 0:00:39]} Nxf5 {[%emt 0:17:16]} 28. Nxf5 {[%emt 0:01:21]} Rxf5 {[%emt 0:00:03]} 29. Qe2 {[%emt 0:08:59]} Kf8 {[%emt 0:04:59]} 30. Qg4 {[%emt 0:08:49]} Rf7 {[%emt 0:08:21]} 31. Re6 {[%emt 0:00:31]} Qb5 {[%emt 0:05:20]} 32. Re3 {[%emt 0:01:58]} ({Better is} 32. b3 $16) 32... Qd7 $1 $14 {[%emt 0:00:07]} (32... Qxb2 $2 33. Qc8 Qb1+ 34. Kh2 $18) 33. Re6 {[%emt 0:00:28]} (33. Qxd7 $14 Rxd7 34. Kg2) 33... Qb5 $1 $16 {[%emt 0:00:03]} 34. b3 {[%emt 0:01:07]} a4 {[%emt 0:00:32]} 35. Re3 {[%emt 0:00:33]} (35. Kg2 $16) 35... axb3 {[%emt 0:00:21]} (35... Qd7 $1 $14 36. Re6 b5) 36. axb3 $16 {[%emt 0:00:11]} Qd7 {[%emt 0:00:04]} 37. Re6 {[%emt 0:00:37]} Qb5 {[%emt 0:00:03]} (37... Be7 $16 38. Be5 Ke8) 38. Re5 {[%emt 0:00:36]} (38. h6 $1 $18 {is the precise move to win.}) 38... Qd7 $16 {[%emt 0:00:32]} 39. Qe2 {[%emt 0:00:20]} (39. Qxd7 $1 $16 Rxd7 40. Kh2) 39... Rf5 {[%emt 0:06:28]} (39... c6 $11) 40. Re3 {[%emt 0:00:34]} Rf7 {[%emt 0:01:39]} 41. Kg2 {[%emt 0:10:59]} Be7 {[%emt 0:00:54]} 42. Qa6 {[%emt 0:02:05]} Kg7 {[%emt 0:01:21]} 43. Qe2 {[%emt 0:01:38]} Kf8 {[%emt 0:04:47]} 44. Re6 {[%emt 0:06:41]} Rf6 {[%emt 0:02:08]} 45. Re5 {[%emt 0:00:14]} Rf7 {[%emt 0:00:47]} 46. Qa6 {[%emt 0:03:39]} Kg7 {[%emt 0:03:44]} 47. Qe2 {[%emt 0:00:06]} Kf8 {[%emt 0:00:31]} 48. Qa6 {[%emt 0:03:04]} Bf6 {[%emt 0:03:24]} 49. Qa8+ {[%emt 0:01:02]} Kg7 {[%emt 0:00:02]} 50. Rxd5 {[%emt 0:02:17]} Qg4 {[%emt 0:00:03]} (50... Qe6 $1 $11) 51. Qc6 {[%emt 0:00:54]} (51. Qe8 $16 Re7 52. Qc6) 51... Qxh5 {[%emt 0:04:41]} ({Black should try} 51... Qe4+ $14 52. f3 Qe2+ 53. Bf2 g4) 52. Rd7 $16 {[%emt 0:00:09]} (52. Bxc7 Qe2 $14) 52... Qe2 {[%emt 0:08:20]} 53. Rxf7+ ({But not} 53. Rxc7 Rxc7 54. Qxc7+ Kg6) (53. Qxc7 $6 Rxd7 54. Qxd7+ Kg6 $16) 53... Kxf7 {[%emt 0:00:01]} 54. Qxc7+ {[%emt 0:00:33]} ({Don't take} 54. Bxc7 b5 $16) 54... Kg6 {[%emt 0:00:01]} 55. Qxb6 {[%emt 0:01:02]} Qe4+ {[%emt 0:00:05]} 56. Kh2 {[%emt 0:00:44]} h5 {[%emt 0:00:02] [#]} 57. Qa6 $2 {[%emt 0:03:08]} (57. Qb8 $1 $16) 57... Qc2 {[%emt 0:04:43]} 58. Kg2 {[%emt 0:00:58]} Qe4+ $1 {[%emt 0:00:45]} 59. Kh2 {[%emt 0:00:13]} Qc2 {[%emt 0:00:07]} 60. Kg1 {[%emt 0:00:39]} (60. Qc6 $5 h4 $8 61. Be5 (61. Qe8+ Kg7 $11) 61... Qxf2+ 62. Kh1 Qf1+ 63. Kh2 Qf2+ 64. Kh1 Qf1+ 65. Kh2 Qf2+ $11) 60... Qb1+ $2 {[%emt 0:00:04] [#]} (60... Qxc3 $11 61. Qe6 Qxd4) 61. Kh2 $2 {[%emt 0:00:39]} (61. Qf1 $1 $16 {[%cal Rf1b1]} Qxb3 62. Qd3+ Kh6 63. Qf5) 1/2-1/2

[Event "45th FIDE Olympiad 2024"]
[Site "Budapest"]
[Date "2024.09.16"]
[Round "6.45"]
[White "Aziz, Husain"]
[Black "Mompel Ferruz, Xavier"]
[Result "1/2-1/2"]
[WhiteElo "2340"]
[BlackElo "2273"]
[PlyCount "50"]
[EventDate "2024.09.05"]
[EventType "team-tourn"]
[EventCountry "HUN"]
[WhiteTeam "Qatar"]
[BlackTeam "Equatorial Guinea"]
[WhiteTeamCountry "QAT"]
[TimeControl "40/5400+30:1800+30"]

1. d4 d5 2. Nf3 Nf6 3. Bf4 c5 4. e3 Nc6 5. Nbd2 Bg4 6. c3 e6 7. Qb3 Qc8 8. h3 Bh5 9. Be2 Be7 10. O-O O-O 11. Rfe1 c4 12. Qd1 b5 13. Ne5 Bxe2 14. Qxe2 Nxe5 15. Bxe5 Qc6 16. Bxf6 Bxf6 17. e4 dxe4 18. Nxe4 Be7 19. Qf3 Rfc8 20. Re2 a5 21. Rae1 Qd5 22. Nd2 Bf6 23. Ne4 Be7 24. Nd2 Bf6 25. Ne4 Be7 1/2-1/2

[Event "45th FIDE Olympiad 2024"]
[Site "Budapest"]
[Date "2024.09.16"]
[Round "6.46"]
[White "Petrov, Nikita"]
[Black "Ivanchuk, Vasyl"]
[Result "1/2-1/2"]
[ECO "E32"]
[WhiteElo "2574"]
[BlackElo "2635"]
[Annotator "RC"]
[PlyCount "97"]
[EventDate "2024.09.05"]
[EventType "team-tourn"]
[EventCountry "HUN"]
[SourceTitle "playchess.com"]
[Source "ChessBase"]
[SourceQuality "1"]
[WhiteTeam "Montenegro"]
[BlackTeam "Ukraine"]
[WhiteTeamCountry "MNE"]
[BlackTeamCountry "UKR"]
[TimeControl "40/5400+30:1800+30"]

1. d4 {[%emt 0:00:03]} Nf6 {[%emt 0:00:04]} 2. c4 {[%emt 0:00:07]} e6 {[%emt 0:00:03]} 3. Nc3 {[%emt 0:00:09]} Bb4 {[%emt 0:00:04]} 4. Qc2 {[%emt 0:00:11]} O-O {[%emt 0:00:07]} 5. e4 {[%emt 0:00:22]} d6 {[%emt 0:00:04]} 6. e5 {[%emt 0:01:32]} dxe5 {[%emt 0:00:05]} 7. dxe5 {[%emt 0:00:05]} Ng4 {[%emt 0:00:04]} 8. Nf3 {[%emt 0:01:23]} Nc6 {[%emt 0:00:06]} 9. Bf4 {[%emt 0:01:06]} f6 {[%emt 0:04:22]} 10. Bd3 {[%emt 0:14:20]} Bxc3+ {[%emt 0:03:40]} 11. bxc3 {[%emt 0:03:46]} h6 {[%emt 0:00:05]} 12. exf6 {[%emt 0:20:17]} Qxf6 {[%emt 0:00:08]} 13. Bxc7 {[%emt 0:00:42]} Nb4 {[%emt 0:00:09]} 14. Qd2 {[%emt 0:02:16]} Nxd3+ {[%emt 0:00:06]} 15. Qxd3 {[%emt 0:00:03]} Qf5 {[%emt 0:00:17]} 16. Qxf5 {[%emt 0:02:15]} Rxf5 {[%emt 0:00:02]} 17. Bd6 {[%emt 0:10:26]} Nf6 {[%emt 0:01:32]} 18. O-O {[%emt 0:03:25]} Ne4 {[%emt 0:00:02]} 19. Rfd1 {[%emt 0:08:37]} b6 {[%emt 0:08:22]} 20. Be5 {[%emt 0:03:36]} Ba6 {[%emt 0:01:14]} 21. Rd7 {[%emt 0:00:37]} Rf7 {[%emt 0:00:02]} 22. Rxf7 {[%emt 0:01:37]} Kxf7 {[%emt 0:00:01]} 23. Bd4 {[%emt 0:00:06]} Rc8 {[%emt 0:00:23]} 24. a4 {[%emt 0:03:31]} Bxc4 {[%emt 0:07:37]} 25. a5 {[%emt 0:01:01]} bxa5 {[%emt 0:00:02]} 26. Rxa5 {[%emt 0:00:45]} a6 {[%emt 0:00:01]} 27. Ne5+ {[%emt 0:00:28]} Kg8 {[%emt 0:00:01]} 28. f3 {[%emt 0:01:55]} Nd6 {[%emt 0:00:05]} 29. Nxc4 {[%emt 0:01:37]} Nxc4 {[%emt 0:00:01]} 30. Rxa6 {[%emt 0:00:10]} e5 {[%emt 0:00:02]} 31. Bf2 {[%emt 0:01:04]} Rb8 {[%emt 0:00:08]} 32. Ra1 {[%emt 0:01:26]} Rb2 {[%emt 0:00:29]} 33. Re1 {[%emt 0:02:09]} Rc2 {[%emt 0:00:46]} 34. Bg3 {[%emt 0:00:17]} Rxc3 {[%emt 0:00:07]} 35. Bxe5 {[%emt 0:00:06]} Nxe5 {[%emt 0:00:03]} 36. Rxe5 {[%emt 0:00:05]} Kf7 {[%emt 0:04:35]} 37. h4 {[%emt 0:00:47]} Rc2 {[%emt 0:00:14]} 38. Kh2 {[%emt 0:00:09]} Ra2 {[%emt 0:00:09]} 39. Kh3 {[%emt 0:00:06]} Rf2 {[%emt 0:00:19]} 40. Re3 {[%emt 0:00:19]} h5 {[%emt 0:01:40]} 41. Re5 {[%emt 0:30:15]} g6 {[%emt 0:30:07]} 42. Rg5 {[%emt 0:02:10]} Kf6 {[%emt 0:00:14]} 43. Kg3 {[%emt 0:00:06]} Ra2 {[%emt 0:00:05]} 44. f4 {[%emt 0:00:22]} Ra3+ {[%emt 0:00:22]} 45. Kh2 {[%emt 0:00:33]} Ra4 {[%emt 0:00:17]} 46. g3 {[%emt 0:00:14]} Ra2+ {[%emt 0:00:10]} 47. Kg1 {[%emt 0:00:04]} Ra1+ {[%emt 0:01:38]} 48. Kg2 {[%emt 0:00:09]} Ra2+ {[%emt 0:00:08]} 49. Kh3 {[%emt 0:00:03]} 1/2-1/2

[Event "45th FIDE Olympiad 2024"]
[Site "Budapest"]
[Date "2024.09.16"]
[Round "6.46"]
[White "Oscar, Naranjo Gonzalez"]
[Black "Erfan, Mohamad Firdaus"]
[Result "0-1"]
[WhiteElo "1861"]
[BlackElo "1758"]
[PlyCount "74"]
[EventDate "2024.09.05"]
[EventType "team-tourn"]
[EventCountry "HUN"]
[WhiteTeam "Equatorial Guinea"]
[BlackTeam "Qatar"]
[BlackTeamCountry "QAT"]
[TimeControl "40/5400+30:1800+30"]

1. e4 e5 2. Nf3 Nc6 3. Bb5 a6 4. Ba4 Nf6 5. Qe2 b5 6. Bb3 Bc5 7. a4 Rb8 8. axb5 axb5 9. Nc3 b4 10. Nd5 O-O 11. d3 Nxd5 12. Bxd5 Nd4 13. Nxd4 Bxd4 14. O-O c6 15. Bb3 d5 16. Kh1 dxe4 17. dxe4 Qh4 18. f4 Bg4 19. Qe1 Qxe1 20. Rxe1 Be6 21. Ra6 Bxb3 22. cxb3 Rfc8 23. g3 f6 24. Kg2 c5 25. fxe5 fxe5 26. Re2 c4 27. bxc4 Rxc4 28. Ra1 Rbc8 29. Be3 Rc2 30. Kf1 Bxe3 31. Rxe3 Rxh2 32. Kg1 Rxb2 33. Rf3 b3 34. Ra7 Rc1+ 35. Rf1 Rxf1+ 36. Kxf1 Ra2 37. Rb7 b2 {0-} 0-1

[Event "45th FIDE Olympiad 2024"]
[Site "Budapest"]
[Date "2024.09.16"]
[Round "6.47"]
[White "Ponomariov, Ruslan"]
[Black "Djukic, Nikola"]
[Result "1-0"]
[ECO "B67"]
[WhiteElo "2654"]
[BlackElo "2515"]
[Annotator "TA"]
[PlyCount "77"]
[EventDate "2024.09.05"]
[EventType "team-tourn"]
[EventCountry "HUN"]
[SourceTitle "playchess.com"]
[Source "ChessBase"]
[SourceQuality "1"]
[WhiteTeam "Ukraine"]
[BlackTeam "Montenegro"]
[WhiteTeamCountry "UKR"]
[BlackTeamCountry "MNE"]
[TimeControl "40/5400+30:1800+30"]

{[%evp 17,77,25,33,17,24,28,38,18,18,18,14,0,18,12,31,20,34,27,16,27,20,0,7,0,32,34,93,126,140,132,137,114,145,147,251,56,58,18,70,108,161,158,230,224,262,254,250,169,168,172,232,226,304,301,342,406,400,392,29978,29979,29987,29988]} 1. e4 {[%emt 0:00:02]} c5 {[%emt 0:00:08]} 2. Nf3 {[%emt 0:00:06]} d6 {[%emt 0:00:07]} 3. d4 {[%emt 0:00:47]} cxd4 {[%emt 0:00:06]} 4. Nxd4 {[%emt 0:00:05]} Nf6 {[%emt 0:00:06]} 5. Nc3 {[%emt 0:00:05]} Nc6 {[%emt 0:00:06]} 6. Bg5 {[%emt 0:01:59]} e6 {[%emt 0:00:08]} 7. Qd2 {[%emt 0:00:40]} a6 {[%emt 0:00:16]} 8. O-O-O {[%emt 0:02:09]} Bd7 {[%emt 0:00:25]} 9. Kb1 {[%emt 0:00:56]} Nxd4 {[%emt 0:06:22] seems to push 9...Be7 aside. B67: Sicilian: Richter-Rauzer: 7...a6 8 0-0-0 Bd7, lines without 9 f4 Be7.} 10. Qxd4 {[%emt 0:00:50]} Be7 {[%emt 0:00:38]} 11. f3 {[%emt 0:04:09]} Qc7 {[%emt 0:01:39]} 12. Qd2 {[%emt 0:02:01]} b5 {[%emt 0:02:04]} 13. h4 {[%emt 0:00:57]} b4 {[%emt 0:04:10]} 14. Ne2 {[%emt 0:00:39]} a5 {[%emt 0:00:11]} 15. c4 {[%emt 0:06:52]} bxc3 {[%emt 0:01:24]} 16. Nxc3 {[%emt 0:00:14]} Qb7 {[%emt 0:05:32]} 17. a4 {[%emt 0:04:04]} h6 {[%emt 0:19:08]} 18. Be3 {[%emt 0:01:57]} Rc8 $146 {[%emt 0:01:07]} ({Predecessor:} 18... Rb8 19. Nb5 O-O 20. Bd3 d5 21. Bxh6 Bxb5 22. axb5 dxe4 23. fxe4 Nxe4 24. Qe2 gxh6 25. Qg4+ Kh8 26. Qf4 Kg7 27. Qg4+ Kh8 28. Qf4 Kg7 29. Qg4+ {½-½ Sowul,B (2269)-Chojnacki,K (2327) Suwalki Warakomska Memorial 7th 2023 (9)}) 19. Nb5 {[%emt 0:09:55]} O-O {[%emt 0:04:08]} 20. Bd3 {[%emt 0:03:48]} e5 {[%emt 0:04:27]} 21. g4 {[%emt 0:04:02]} Be6 {[%emt 0:01:09]} ({Better is} 21... d5 $14 22. g5 d4 23. Bxd4 exd4 24. gxf6 Bxf6) 22. g5 $1 $16 {[%emt 0:03:27]} Nh5 {[%emt 0:00:10]} 23. gxh6 {[%emt 0:00:32]} g6 {[%emt 0:00:05]} 24. Rc1 {[%emt 0:00:30]} (24. Qxa5 Ra8 25. Qc7 Qxc7 26. Nxc7 Rxa4) 24... d5 {[%emt 0:08:47]} 25. Qxa5 {[%emt 0:05:43]} dxe4 {[%emt 0:14:17]} (25... Ng3 $16) 26. fxe4 $2 {[%emt 0:03:45]} (26. Bxe4 $18 Bd5 27. Nd6 Bxe4+ 28. Nxe4) 26... Bc4 $14 {[%emt 0:03:01]} 27. Bc2 {[%emt 0:10:12]} (27. Rxc4 Rxc4 28. Nc3 Rb8 $19) 27... Bc5 {[%emt 0:06:32]} (27... Ng3 $11) 28. Rh3 $14 {[%emt 0:08:42]} Bxe3 {[%emt 0:07:53]} (28... Be7 $16 {was called for.}) 29. Rxe3 $18 {[%emt 0:00:17]} Rc6 {[%emt 0:02:30] [#]} (29... Bxb5 $16 {keeps fighting.} 30. Rb3 (30. Qxb5 Qxb5 31. axb5 Nf4 $16) (30. axb5 Rc5 $16) 30... Qe7 (30... Rxc2 $2 31. Rxc2 Qxe4 32. Qxb5 $18)) 30. Na3 $1 $18 {[%emt 0:09:55]} Qe7 {[%emt 0:05:20]} 31. Nxc4 {[%emt 0:03:21]} Rxc4 {[%emt 0:00:05]} 32. Bb3 {[%emt 0:00:28]} Rxc1+ {[%emt 0:00:55]} 33. Kxc1 {[%emt 0:00:01]} Qxh4 {[%emt 0:01:43]} (33... Kh7 $142 34. Kb1 Kxh6) 34. Qxe5 $18 {[%emt 0:00:51]} Qf2 {[%emt 0:00:04]} 35. Rc3 {[%emt 0:02:09]} Qf1+ {[%emt 0:00:59]} 36. Kc2 {[%emt 0:00:14]} Kh7 {[%emt 0:00:41]} 37. Qe7 {[%emt 0:01:09]} Kg8 $2 {[%emt 0:00:15]} (37... Ra8 $18 38. Rc7 (38. Bxf7 Qf2+ 39. Kb1 Ra7 $18) (38. Qxf7+ Qxf7 39. Bxf7 Rxa4 $18) 38... Kxh6 39. Qxf7 Qxf7 40. Rxf7 g5) 38. h7+ {[%emt 0:00:14]} Kg7 {[%emt 0:00:07]} 39. Qxf8+ {[%emt 0:00:07]} 1-0

[Event "45th FIDE Olympiad 2024"]
[Site "Budapest"]
[Date "2024.09.16"]
[Round "6.47"]
[White "Al-Kuwari, Turki"]
[Black "Angel, Estanislao Gatjens C"]
[Result "1-0"]
[WhiteElo "1577"]
[BlackElo "1849"]
[PlyCount "91"]
[EventDate "2024.09.05"]
[EventType "team-tourn"]
[EventCountry "HUN"]
[WhiteTeam "Qatar"]
[BlackTeam "Equatorial Guinea"]
[WhiteTeamCountry "QAT"]
[TimeControl "40/5400+30:1800+30"]

1. e4 c6 2. d4 d5 3. exd5 cxd5 4. c3 Nf6 5. Bd3 Bg4 6. Qb3 Qd7 7. Bf4 Nc6 8. Nd2 e6 9. h3 Bh5 10. Ngf3 Bxf3 11. Nxf3 Bd6 12. Bxd6 Qxd6 13. O-O O-O 14. Rfe1 Qc7 15. Ne5 Nxe5 16. Rxe5 b5 17. a4 bxa4 18. Rxa4 Rab8 19. Rb4 a5 20. Rxb8 Rxb8 21. Qc2 Qb7 22. Re2 Qb3 23. Qxb3 Rxb3 24. Bc2 Rb7 25. b3 Kf8 26. Kf1 Ke7 27. Ke1 Kd6 28. Kd2 h6 29. Re1 Kc6 30. Ra1 Kb6 31. c4 dxc4 32. bxc4 Rd7 33. Kc3 Ra7 34. g4 Kc6 35. f3 Kd6 36. c5+ Kd5 37. Rb1 Kc6 38. Be4+ Kc7 39. Kc4 a4 40. Ra1 a3 41. Kb3 a2 42. Rxa2 Rxa2 43. Kxa2 e5 44. d5 Nd7 45. d6+ Kd8 46. c6 1-0

[Event "45th FIDE Olympiad 2024"]
[Site "Budapest"]
[Date "2024.09.16"]
[Round "6.48"]
[White "Draskovic, Luka"]
[Black "Onyshchuk, Volodymyr"]
[Result "1/2-1/2"]
[ECO "B10"]
[WhiteElo "2497"]
[BlackElo "2610"]
[Annotator "TA"]
[PlyCount "65"]
[EventDate "2024.09.05"]
[EventType "team-tourn"]
[EventCountry "HUN"]
[SourceTitle "playchess.com"]
[Source "ChessBase"]
[SourceQuality "1"]
[WhiteTeam "Montenegro"]
[BlackTeam "Ukraine"]
[WhiteTeamCountry "MNE"]
[BlackTeamCountry "UKR"]
[TimeControl "40/5400+30:1800+30"]

{[%evp 9,65,-6,-5,0,18,0,19,10,18,20,35,20,18,25,16,19,23,19,34,9,14,0,0,4,18,0,0,0,0,0,0,0,7,0,0,0,0,0,0,0,0,0,0,0,0,-4,-6,-7,0,0,0,0,0,0,0,0,0,0]} 1. e4 {[%emt 0:00:10]} c6 {[%emt 0:00:13]} 2. Nf3 {[%emt 0:00:54][%cal Bg1f3,Bf3e1,Be1d3][%mdl 32]} d5 {[%emt 0:00:36]} 3. d3 {[%emt 0:00:07]} dxe4 {[%emt 0:01:02]} 4. dxe4 {[%emt 0:00:06]} Qxd1+ {[%emt 0:00:07]} 5. Kxd1 {[%emt 0:00:03]} Nd7 {[%emt 0:00:28]} 6. Nbd2 {[%emt 0:05:54]} e5 {[%emt 0:09:25]} 7. Ne1 {[%emt 0:13:44]} f6 {[%emt 0:04:09]} 8. Nd3 {[%emt 0:00:43]} Nc5 {[%emt 0:10:21]} 9. f3 {[%emt 0:07:27]} h5 {[%emt 0:17:35]} 10. h4 {[%emt 0:07:13]} Nh6 {[%emt 0:04:37]} 11. a4 {[%emt 0:01:14]} Be6 {[%emt 0:17:29]} 12. Nxc5 {[%emt 0:04:12]} Bxc5 {[%emt 0:00:05]} 13. Bc4 {[%emt 0:00:57]} Ke7 {[%emt 0:01:49]} 14. Ke2 {[%emt 0:01:45]} g6 {[%emt 0:05:26] The position is equal.} 15. Bxe6 {[%emt 0:05:08]} Kxe6 {[%emt 0:00:04]} 16. Nb3 {[%emt 0:00:13]} Be7 {[%emt 0:00:10]} 17. Be3 {[%emt 0:00:23]} f5 {[%emt 0:01:03]} 18. Nd2 {[%emt 0:06:24]} Nf7 {[%emt 0:02:39]} 19. Rad1 {[%emt 0:05:07]} Rag8 {[%emt 0:01:52]} 20. g3 {[%emt 0:04:04]} a6 {[%emt 0:00:31]} 21. Bb6 {[%emt 0:06:40]} Nd6 {[%emt 0:06:33]} 22. Be3 {[%emt 0:08:23]} fxe4 {[%emt 0:03:16]} 23. Nxe4 {[%emt 0:00:06]} Nxe4 {[%emt 0:00:03]} 24. fxe4 {[%emt 0:00:07]} g5 {[%emt 0:00:03]} 25. hxg5 {[%emt 0:02:30]} Bxg5 {[%emt 0:00:03]} 26. Bxg5 {[%emt 0:03:21]} Rxg5 $11 {[%emt 0:00:05][%mdl 4096] Endgame. KRR-KRR} 27. Rd3 {[%emt 0:00:43]} Rg4 {[%emt 0:00:21]} 28. Re3 {[%emt 0:00:19]} b5 {[%emt 0:03:22]} 29. axb5 {[%emt 0:03:25]} axb5 {[%emt 0:00:03]} 30. b4 {[%emt 0:02:38]} h4 {[%emt 0:00:48]} 31. Rxh4 {[%emt 0:00:11]} Rhxh4 {[%emt 0:00:05]} 32. gxh4 {[%emt 0:00:04]} Rxh4 {[%emt 0:00:05]} 33. Kd3 {[%emt 0:00:05] An uneventful encounter.   Weighted Error Value: White=0.04 (flawless) /Black=0.04 (flawless) .  OK:         	White=13    	Black=8} 1/2-1/2